[Event "Titled Tuesday Blitz April 25 Early 2023"]
[White "Putri, Regita Desyari"]
[Black "Jaskolka, Tomasz"]
[WhiteFideId "7109083"]
[BlackFideId "1170791"]
[WhiteElo "1930"]
[BlackElo "2155"]
[Result "0-1"]
[Round "04"]
[TimeControl "180+2"]
[Date "2023.04.25"]
[WhiteClock "0:00:03"]
[BlackClock "0:00:05"]

1. d4 {[%clk 0:02:58]}  d5 {[%clk 0:02:55]} 2. c4 {[%clk 0:02:59]}  e5 {[%clk 0:02:56]} 3. dxe5 {[%clk 0:02:57]}  d4 {[%clk 0:02:56]} 4. Nf3 {[%clk 0:02:57]}  Nc6 {[%clk 0:02:56]} 5. a3 {[%clk 0:02:57]}  a5 {[%clk 0:02:56]} 6. g3 {[%clk 0:02:52]}  Nge7 {[%clk 0:02:54]} 7. Bg2 {[%clk 0:02:50]}  Ng6 {[%clk 0:02:54]} 8. O-O {[%clk 0:02:48]}  Ngxe5 {[%clk 0:02:54]} 9. Nxe5 {[%clk 0:02:48]}  Nxe5 {[%clk 0:02:54]} 10. Qc2 {[%clk 0:02:47]}  Be7 {[%clk 0:02:47]} 11. Bf4 {[%clk 0:02:45]}  Ng6 {[%clk 0:02:36]} 12. Nd2 {[%clk 0:02:19]}  Nxf4 {[%clk 0:02:35]} 13. gxf4 {[%clk 0:02:20]}  Qd6 {[%clk 0:02:28]} 14. e3 {[%clk 0:02:12]}  dxe3 {[%clk 0:02:26]} 15. fxe3 {[%clk 0:02:13]}  O-O {[%clk 0:02:25]} 16. Nf3 {[%clk 0:02:03]}  Qb6 {[%clk 0:02:24]} 17. Nd4 {[%clk 0:01:56]}  Bf6 {[%clk 0:02:21]} 18. c5 {[%clk 0:01:48]}  Qa7 {[%clk 0:02:15]} 19. Rfd1 {[%clk 0:01:42]}  a4 {[%clk 0:02:13]} 20. Rac1 {[%clk 0:01:34]}  Bg4 {[%clk 0:02:10]} 21. Rd2 {[%clk 0:01:17]}  Rfe8 {[%clk 0:02:09]} 22. e4 {[%clk 0:01:10]}  Rad8 {[%clk 0:01:47]} 23. e5 {[%clk 0:01:07]}  Be7 {[%clk 0:01:47]} 24. h3 {[%clk 0:00:58]}  Bh5 {[%clk 0:01:45]} 25. Be4 {[%clk 0:00:54]}  h6 {[%clk 0:01:38]} 26. Qc4 {[%clk 0:00:43]}  Qa5 {[%clk 0:01:27]} 27. Rg2 {[%clk 0:00:41]}  Bf8 {[%clk 0:01:02]} 28. Nf5 {[%clk 0:00:36]}  Kh8 {[%clk 0:01:02]} 29. Qc3 {[%clk 0:00:30]}  Qxc3 {[%clk 0:01:00]} 30. Rxc3 {[%clk 0:00:31]}  f6 {[%clk 0:00:55]} 31. Ng3 {[%clk 0:00:27]}  Bf7 {[%clk 0:00:50]} 32. Bxb7 {[%clk 0:00:24]}  fxe5 {[%clk 0:00:48]} 33. f5 {[%clk 0:00:19]}  Bd5 {[%clk 0:00:40]} 34. Bxd5 {[%clk 0:00:17]}  Rxd5 {[%clk 0:00:41]} 35. Rgc2 {[%clk 0:00:18]}  e4 {[%clk 0:00:36]} 36. Kf2 {[%clk 0:00:17]}  Kg8 {[%clk 0:00:26]} 37. Ke2 {[%clk 0:00:11]}  Red8 {[%clk 0:00:21]} 38. Rc4 {[%clk 0:00:11]}  Rd3 {[%clk 0:00:18]} 39. Nxe4 {[%clk 0:00:10]}  Rxh3 {[%clk 0:00:18]} 40. Nf2 {[%clk 0:00:11]}  Rh5 {[%clk 0:00:17]} 41. Rf4 {[%clk 0:00:10]}  Rd5 {[%clk 0:00:17]} 42. Rxa4 {[%clk 0:00:09]}  Rhxf5 {[%clk 0:00:14]} 43. Rac4 {[%clk 0:00:08]}  Rxc5 {[%clk 0:00:14]} 44. Rxc5 {[%clk 0:00:08]}  Bxc5 {[%clk 0:00:15]} 45. Ne4 {[%clk 0:00:08]}  Bb6 {[%clk 0:00:15]} 46. b4 {[%clk 0:00:07]}  Rf4 {[%clk 0:00:10]} 47. Kd3 {[%clk 0:00:07]}  Rf3+ {[%clk 0:00:10]} 48. Kc4 {[%clk 0:00:06]}  Rxa3 {[%clk 0:00:10]} 49. Kb5 {[%clk 0:00:06]}  h5 {[%clk 0:00:10]} 50. Nc5 {[%clk 0:00:06]}  g5 {[%clk 0:00:08]} 51. Nd7 {[%clk 0:00:07]}  Bd4 {[%clk 0:00:05]} 52. Rxc7 {[%clk 0:00:06]}  h4 {[%clk 0:00:05]} 53. Nc5 {[%clk 0:00:02]}  Bxc5 {[%clk 0:00:04]} 54. Rxc5 {[%clk 0:00:01]}  Rg3 {[%clk 0:00:03]} 55. Kc6 {[%clk 0:00:01]}  h3 {[%clk 0:00:03]} 56. b5 {[%clk 0:00:02]}  h2 {[%clk 0:00:04]} 57. Rc1 {[%clk 0:00:02]}  Rg1 {[%clk 0:00:05]} 58. Rc2 {[%clk 0:00:03]}  h1=Q+ {[%clk 0:00:05]} 0-1


[Site "https://www.chess.com"]

[Event "Titled Tuesday Blitz April 25 Early 2023"]
[White "Estrada Nieto, Julian"]
[Black "GregLeBarbare"]
[WhiteFideId "5101018"]
[WhiteElo "2161"]
[BlackElo "2169"]
[Result "1-0"]
[Round "04"]
[TimeControl "180+2"]
[Date "2023.04.25"]
[WhiteClock "0:00:58"]
[BlackClock "0:00:32"]

1. e4 {[%clk 0:03:00]}  e6 {[%clk 0:02:59]} 2. d4 {[%clk 0:03:00]}  d5 {[%clk 0:02:59]} 3. Nd2 {[%clk 0:03:00]}  Nf6 {[%clk 0:02:59]} 4. e5 {[%clk 0:03:00]}  Nfd7 {[%clk 0:03:00]} 5. Bd3 {[%clk 0:03:01]}  c5 {[%clk 0:03:00]} 6. c3 {[%clk 0:03:01]}  Nc6 {[%clk 0:03:01]} 7. Ne2 {[%clk 0:03:01]}  cxd4 {[%clk 0:03:00]} 8. cxd4 {[%clk 0:03:02]}  f6 {[%clk 0:03:01]} 9. exf6 {[%clk 0:03:03]}  Qxf6 {[%clk 0:03:02]} 10. Nf3 {[%clk 0:03:03]}  h6 {[%clk 0:03:01]} 11. O-O {[%clk 0:03:03]}  Bd6 {[%clk 0:03:00]} 12. Be3 {[%clk 0:03:03]}  O-O {[%clk 0:03:00]} 13. h3 {[%clk 0:03:03]}  Rd8 {[%clk 0:03:00]} 14. Nh2 {[%clk 0:03:02]}  Nf8 {[%clk 0:03:00]} 15. Ng4 {[%clk 0:03:02]}  Qf7 {[%clk 0:03:00]} 16. Bxh6 {[%clk 0:02:40]}  e5 {[%clk 0:02:59]} 17. dxe5 {[%clk 0:02:23]}  Bxg4 {[%clk 0:02:56]} 18. hxg4 {[%clk 0:02:20]}  Nxe5 {[%clk 0:02:52]} 19. Bg5 {[%clk 0:02:07]}  Nxg4 {[%clk 0:02:27]} 20. Ng3 {[%clk 0:02:05]}  Nf6 {[%clk 0:02:20]} 21. Nf5 {[%clk 0:01:44]}  Bc7 {[%clk 0:01:36]} 22. Qf3 {[%clk 0:01:39]}  Rac8 {[%clk 0:01:29]} 23. Rac1 {[%clk 0:01:34]}  Bb8 {[%clk 0:01:28]} 24. Rxc8 {[%clk 0:01:23]}  Rxc8 {[%clk 0:01:29]} 25. Qh3 {[%clk 0:01:23]}  Rc6 {[%clk 0:01:12]} 26. Re1 {[%clk 0:01:16]}  Ne4 {[%clk 0:00:31]} 27. Bxe4 {[%clk 0:01:01]}  dxe4 {[%clk 0:00:32]} 28. Ne7+ {[%clk 0:00:58]} 1-0


[Site "https://www.chess.com"]

[Event "Titled Tuesday Blitz April 25 Early 2023"]
[White "Melikhov, Evgeny V."]
[Black "Christensen, Thomas"]
[WhiteFideId "4122046"]
[BlackFideId "1403532"]
[WhiteElo "2158"]
[BlackElo "2177"]
[Result "1/2-1/2"]
[Round "04"]
[TimeControl "180+2"]
[Date "2023.04.25"]
[WhiteClock "0:00:07"]
[BlackClock "0:00:10"]

1. d4 {[%clk 0:03:00]}  Nc6 {[%clk 0:02:59]} 2. d5 {[%clk 0:03:00]}  Ne5 {[%clk 0:02:59]} 3. f4 {[%clk 0:03:00]}  Ng6 {[%clk 0:02:59]} 4. Nc3 {[%clk 0:02:59]}  e5 {[%clk 0:02:58]} 5. dxe6 {[%clk 0:02:59]}  fxe6 {[%clk 0:02:59]} 6. e4 {[%clk 0:02:57]}  Bc5 {[%clk 0:02:57]} 7. Nf3 {[%clk 0:02:55]}  Nh6 {[%clk 0:02:55]} 8. Bd3 {[%clk 0:02:35]}  Ng4 {[%clk 0:02:48]} 9. Qe2 {[%clk 0:02:24]}  Bf2+ {[%clk 0:02:43]} 10. Kf1 {[%clk 0:02:21]}  Bb6 {[%clk 0:02:43]} 11. h4 {[%clk 0:02:12]}  O-O {[%clk 0:02:16]} 12. g3 {[%clk 0:02:10]}  Nf2 {[%clk 0:02:14]} 13. Rh2 {[%clk 0:02:09]}  Nxd3 {[%clk 0:02:12]} 14. cxd3 {[%clk 0:02:08]}  Qf6 {[%clk 0:01:22]} 15. Kg2 {[%clk 0:01:57]}  d6 {[%clk 0:01:18]} 16. h5 {[%clk 0:01:55]}  Ne7 {[%clk 0:01:18]} 17. Na4 {[%clk 0:01:43]}  Nc6 {[%clk 0:01:16]} 18. Nxb6 {[%clk 0:01:41]}  axb6 {[%clk 0:01:17]} 19. a3 {[%clk 0:01:31]}  Nd4 {[%clk 0:01:15]} 20. Nxd4 {[%clk 0:01:30]}  Qxd4 {[%clk 0:01:16]} 21. Be3 {[%clk 0:01:30]}  Qa4 {[%clk 0:01:07]} 22. Rc1 {[%clk 0:01:27]}  c5 {[%clk 0:00:47]} 23. h6 {[%clk 0:01:18]}  g6 {[%clk 0:00:46]} 24. Bd2 {[%clk 0:01:02]}  e5 {[%clk 0:00:46]} 25. Bc3 {[%clk 0:00:58]}  exf4 {[%clk 0:00:41]} 26. gxf4 {[%clk 0:00:56]}  Rxf4 {[%clk 0:00:42]} 27. Rf1 {[%clk 0:00:56]}  Rg4+ {[%clk 0:00:32]} 28. Kh1 {[%clk 0:00:50]}  Be6 {[%clk 0:00:28]} 29. Rhf2 {[%clk 0:00:47]}  Rh4+ {[%clk 0:00:25]} 30. Kg1 {[%clk 0:00:47]}  Rg4+ {[%clk 0:00:24]} 31. Kh2 {[%clk 0:00:46]}  Rh4+ {[%clk 0:00:23]} 32. Kg1 {[%clk 0:00:44]}  Rg4+ {[%clk 0:00:23]} 33. Rg2 {[%clk 0:00:44]}  Rxg2+ {[%clk 0:00:23]} 34. Kxg2 {[%clk 0:00:42]}  Qd7 {[%clk 0:00:22]} 35. Qf3 {[%clk 0:00:41]}  Qf7 {[%clk 0:00:18]} 36. Qg3 {[%clk 0:00:38]}  Qe7 {[%clk 0:00:18]} 37. Qf4 {[%clk 0:00:36]}  Rf8 {[%clk 0:00:18]} 38. Qxf8+ {[%clk 0:00:30]}  Qxf8 {[%clk 0:00:18]} 39. Rxf8+ {[%clk 0:00:31]}  Kxf8 {[%clk 0:00:19]} 40. Kf3 {[%clk 0:00:30]}  Kf7 {[%clk 0:00:19]} 41. Kf4 {[%clk 0:00:31]}  Bb3 {[%clk 0:00:19]} 42. Kg5 {[%clk 0:00:30]}  Ke6 {[%clk 0:00:19]} 43. Kf4 {[%clk 0:00:28]}  b5 {[%clk 0:00:17]} 44. Kg5 {[%clk 0:00:27]}  Bc2 {[%clk 0:00:17]} 45. d4 {[%clk 0:00:26]}  cxd4 {[%clk 0:00:17]} 46. Bxd4 {[%clk 0:00:26]}  Bxe4 {[%clk 0:00:18]} 47. Kf4 {[%clk 0:00:26]}  Bc2 {[%clk 0:00:17]} 48. Bg7 {[%clk 0:00:22]}  Kd5 {[%clk 0:00:15]} 49. Kg5 {[%clk 0:00:18]}  Ke4 {[%clk 0:00:13]} 50. Kf6 {[%clk 0:00:16]}  d5 {[%clk 0:00:13]} 51. Bf8 {[%clk 0:00:16]}  g5 {[%clk 0:00:08]} 52. Kxg5 {[%clk 0:00:15]}  d4 {[%clk 0:00:08]} 53. Bb4 {[%clk 0:00:14]}  Ke3 {[%clk 0:00:09]} 54. Bc5 {[%clk 0:00:09]}  Ke4 {[%clk 0:00:05]} 55. Kg4 {[%clk 0:00:08]}  Bd1+ {[%clk 0:00:03]} 56. Kg3 {[%clk 0:00:07]}  Bf3 {[%clk 0:00:03]} 57. Kf2 {[%clk 0:00:07]}  Bh5 {[%clk 0:00:02]} 58. Ke1 {[%clk 0:00:07]}  Kd3 {[%clk 0:00:03]} 59. Bb6 {[%clk 0:00:05]}  Kc2 {[%clk 0:00:03]} 60. Bxd4 {[%clk 0:00:05]}  Kb3 {[%clk 0:00:03]} 61. Bc3 {[%clk 0:00:05]}  Bg6 {[%clk 0:00:03]} 62. Kd2 {[%clk 0:00:06]}  Bb1 {[%clk 0:00:04]} 63. Ke3 {[%clk 0:00:06]}  Bg6 {[%clk 0:00:04]} 64. Kd4 {[%clk 0:00:06]}  Ka4 {[%clk 0:00:04]} 65. Kc5 {[%clk 0:00:06]}  Bc2 {[%clk 0:00:04]} 66. Kb6 {[%clk 0:00:06]}  Be4 {[%clk 0:00:04]} 67. Kc7 {[%clk 0:00:06]}  Bc6 {[%clk 0:00:05]} 68. Kd6 {[%clk 0:00:06]}  Kb3 {[%clk 0:00:05]} 69. Ke5 {[%clk 0:00:06]}  Ka4 {[%clk 0:00:06]} 70. Kf5 {[%clk 0:00:06]}  Kb3 {[%clk 0:00:07]} 71. Kf6 {[%clk 0:00:06]}  Be4 {[%clk 0:00:07]} 72. Ke5 {[%clk 0:00:06]}  Bc6 {[%clk 0:00:07]} 73. Kf5 {[%clk 0:00:06]}  Ka4 {[%clk 0:00:08]} 74. Ke5 {[%clk 0:00:06]}  Kb3 {[%clk 0:00:09]} 75. Kf5 {[%clk 0:00:06]}  Ka4 {[%clk 0:00:09]} 76. Ke5 {[%clk 0:00:07]}  Kb3 {[%clk 0:00:10]} 1/2-1/2


[Site "https://www.chess.com"]

[Event "Titled Tuesday Blitz April 25 Early 2023"]
[White "Jimenez Jimenez, Leandro"]
[Black "Hartikainen, Jarmo"]
[WhiteFideId "6415253"]
[BlackFideId "503134"]
[WhiteElo "2263"]
[BlackElo "2151"]
[Result "1-0"]
[Round "04"]
[TimeControl "180+2"]
[Date "2023.04.25"]
[WhiteClock "0:00:12"]
[BlackClock "0:00:05"]

1. d4 {[%clk 0:03:00]}  Nf6 {[%clk 0:02:59]} 2. c3 {[%clk 0:03:00]}  d5 {[%clk 0:02:57]} 3. Nf3 {[%clk 0:02:57]}  Bf5 {[%clk 0:02:56]} 4. Bf4 {[%clk 0:02:51]}  e6 {[%clk 0:02:56]} 5. e3 {[%clk 0:02:49]}  Bd6 {[%clk 0:02:55]} 6. Nbd2 {[%clk 0:02:48]}  Nbd7 {[%clk 0:02:48]} 7. Be2 {[%clk 0:02:42]}  Ne4 {[%clk 0:02:46]} 8. Ne5 {[%clk 0:02:42]}  f6 {[%clk 0:02:43]} 9. Nxd7 {[%clk 0:02:24]}  Qxd7 {[%clk 0:02:38]} 10. Bg3 {[%clk 0:02:16]}  Bg6 {[%clk 0:02:27]} 11. Nxe4 {[%clk 0:02:12]}  Bxe4 {[%clk 0:02:22]} 12. f3 {[%clk 0:02:13]}  Bg6 {[%clk 0:02:21]} 13. Bd3 {[%clk 0:02:12]}  O-O-O {[%clk 0:02:14]} 14. Qc2 {[%clk 0:02:04]}  Bxd3 {[%clk 0:02:11]} 15. Qxd3 {[%clk 0:02:05]}  h5 {[%clk 0:02:03]} 16. O-O-O {[%clk 0:01:56]}  h4 {[%clk 0:01:58]} 17. Bf2 {[%clk 0:01:49]}  h3 {[%clk 0:01:43]} 18. g3 {[%clk 0:01:44]}  Kb8 {[%clk 0:01:39]} 19. Kb1 {[%clk 0:01:39]}  c5 {[%clk 0:01:25]} 20. dxc5 {[%clk 0:01:19]}  Bxc5 {[%clk 0:01:25]} 21. Rhe1 {[%clk 0:01:18]}  Qc7 {[%clk 0:01:15]} 22. Re2 {[%clk 0:01:16]}  e5 {[%clk 0:00:51]} 23. Qf5 {[%clk 0:01:07]}  Qd7 {[%clk 0:00:35]} 24. Qxd7 {[%clk 0:01:05]}  Rxd7 {[%clk 0:00:35]} 25. Red2 {[%clk 0:01:06]}  Rhd8 {[%clk 0:00:33]} 26. c4 {[%clk 0:00:59]}  d4 {[%clk 0:00:33]} 27. exd4 {[%clk 0:00:56]}  exd4 {[%clk 0:00:30]} 28. Re1 {[%clk 0:00:54]}  Bb4 {[%clk 0:00:27]} 29. Kc2 {[%clk 0:00:53]}  Bxd2 {[%clk 0:00:27]} 30. Kxd2 {[%clk 0:00:51]}  b6 {[%clk 0:00:20]} 31. Kd3 {[%clk 0:00:48]}  Kb7 {[%clk 0:00:19]} 32. Re4 {[%clk 0:00:47]}  Kc6 {[%clk 0:00:18]} 33. Rh4 {[%clk 0:00:46]}  Re8 {[%clk 0:00:16]} 34. Rxh3 {[%clk 0:00:47]}  Rde7 {[%clk 0:00:16]} 35. Rh7 {[%clk 0:00:43]}  Re2 {[%clk 0:00:14]} 36. Bxd4 {[%clk 0:00:40]}  a5 {[%clk 0:00:08]} 37. a4 {[%clk 0:00:37]}  Rg2 {[%clk 0:00:07]} 38. Rxg7 {[%clk 0:00:35]}  Rxh2 {[%clk 0:00:07]} 39. Bxf6 {[%clk 0:00:36]}  Rf2 {[%clk 0:00:03]} 40. f4 {[%clk 0:00:25]}  Rf3+ {[%clk 0:00:03]} 41. Kc2 {[%clk 0:00:24]}  Kc5 {[%clk 0:00:03]} 42. Rc7+ {[%clk 0:00:21]}  Kb4 {[%clk 0:00:03]} 43. Bc3+ {[%clk 0:00:20]}  Kxa4 {[%clk 0:00:03]} 44. Rb7 {[%clk 0:00:11]}  Rf2+ {[%clk 0:00:04]} 45. Kd1 {[%clk 0:00:11]}  Rf1+ {[%clk 0:00:03]} 46. Kd2 {[%clk 0:00:11]}  Rf2+ {[%clk 0:00:03]} 47. Kd3 {[%clk 0:00:12]}  Rf3+ {[%clk 0:00:03]} 48. Kd4 {[%clk 0:00:13]}  Rxg3 {[%clk 0:00:03]} 49. Rxb6 {[%clk 0:00:13]}  Rf3 {[%clk 0:00:03]} 50. Ra6 {[%clk 0:00:13]}  Rxf4+ {[%clk 0:00:02]} 51. Kd5 {[%clk 0:00:13]}  Rf5+ {[%clk 0:00:02]} 52. Kd4 {[%clk 0:00:14]}  Rf4+ {[%clk 0:00:03]} 53. Kd3 {[%clk 0:00:14]}  Rf3+ {[%clk 0:00:03]} 54. Kc2 {[%clk 0:00:14]}  Rf2+ {[%clk 0:00:03]} 55. Bd2 {[%clk 0:00:15]}  Rxd2+ {[%clk 0:00:02]} 56. Kxd2 {[%clk 0:00:15]}  Kb3 {[%clk 0:00:03]} 57. Rxa5 {[%clk 0:00:14]}  Kxc4 {[%clk 0:00:03]} 58. Kc2 {[%clk 0:00:13]}  Re2+ {[%clk 0:00:02]} 59. Kb1 {[%clk 0:00:13]}  Rh2 {[%clk 0:00:02]} 60. Ra3 {[%clk 0:00:13]}  Kb4 {[%clk 0:00:03]} 61. Ka2 {[%clk 0:00:12]}  Rg2 {[%clk 0:00:03]} 62. Rh3 {[%clk 0:00:12]}  Rf2 {[%clk 0:00:03]} 63. Rh4+ {[%clk 0:00:12]}  Kb5 {[%clk 0:00:03]} 64. Ka3 {[%clk 0:00:12]}  Rf3+ {[%clk 0:00:03]} 65. b3 {[%clk 0:00:12]}  Rg3 {[%clk 0:00:03]} 66. Rh5+ {[%clk 0:00:12]}  Kb6 {[%clk 0:00:04]} 67. Kb4 {[%clk 0:00:12]}  Rg4+ {[%clk 0:00:04]} 68. Ka3 {[%clk 0:00:12]}  Rf4 {[%clk 0:00:04]} 69. Rh6+ {[%clk 0:00:10]}  Kb5 {[%clk 0:00:04]} 70. Rh5+ {[%clk 0:00:11]}  Kb6 {[%clk 0:00:04]} 71. b4 {[%clk 0:00:11]}  Rf3+ {[%clk 0:00:04]} 72. Ka4 {[%clk 0:00:12]}  Rf4 {[%clk 0:00:04]} 73. Rh6+ {[%clk 0:00:12]}  Kb7 {[%clk 0:00:05]} 74. Ka5 {[%clk 0:00:12]}  Rf5+ {[%clk 0:00:05]} 75. b5 {[%clk 0:00:13]}  Rg5 {[%clk 0:00:05]} 76. Rh7+ {[%clk 0:00:12]}  Kb8 {[%clk 0:00:05]} 77. Ka6 {[%clk 0:00:12]} 1-0


[Site "https://www.chess.com"]

[Event "Titled Tuesday Blitz April 25 Early 2023"]
[White "Bochnicka, Vladimir"]
[Black "Butolo, Alexandru-Mircea"]
[WhiteFideId "14943450"]
[BlackFideId "1261649"]
[WhiteElo "2094"]
[BlackElo "1861"]
[Result "1-0"]
[Round "04"]
[TimeControl "180+2"]
[Date "2023.04.25"]
[WhiteClock "0:01:24"]
[BlackClock "0:01:19"]

1. e4 {[%clk 0:02:43]}  c5 {[%clk 0:02:59]} 2. Nf3 {[%clk 0:02:42]}  d6 {[%clk 0:02:56]} 3. d4 {[%clk 0:02:41]}  cxd4 {[%clk 0:02:57]} 4. Nxd4 {[%clk 0:02:42]}  Nf6 {[%clk 0:02:57]} 5. Nc3 {[%clk 0:02:41]}  a6 {[%clk 0:02:57]} 6. f3 {[%clk 0:02:40]}  e5 {[%clk 0:02:55]} 7. Nb3 {[%clk 0:02:41]}  Be6 {[%clk 0:02:51]} 8. Be3 {[%clk 0:02:41]}  h5 {[%clk 0:02:51]} 9. Qd2 {[%clk 0:02:41]}  Nbd7 {[%clk 0:02:37]} 10. O-O-O {[%clk 0:02:40]}  Rc8 {[%clk 0:02:25]} 11. Kb1 {[%clk 0:02:35]}  Be7 {[%clk 0:02:18]} 12. Nd5 {[%clk 0:02:35]}  Nxd5 {[%clk 0:02:17]} 13. exd5 {[%clk 0:02:35]}  Bf5 {[%clk 0:02:18]} 14. Bd3 {[%clk 0:02:36]}  Bxd3 {[%clk 0:02:13]} 15. Qxd3 {[%clk 0:02:37]}  b5 {[%clk 0:02:08]} 16. Rhe1 {[%clk 0:02:29]}  O-O {[%clk 0:01:47]} 17. g4 {[%clk 0:02:07]}  hxg4 {[%clk 0:01:46]} 18. Rg1 {[%clk 0:01:47]}  e4 {[%clk 0:01:27]} 19. Qxe4 {[%clk 0:01:42]}  gxf3 {[%clk 0:01:21]} 20. Rxg7+ {[%clk 0:01:35]}  Kxg7 {[%clk 0:01:21]} 21. Rg1+ {[%clk 0:01:36]}  Kh8 {[%clk 0:01:20]} 22. Bd4+ {[%clk 0:01:23]}  Ne5 {[%clk 0:01:19]} 23. Bxe5+ {[%clk 0:01:23]}  dxe5 {[%clk 0:01:19]} 24. Qxe5+ {[%clk 0:01:24]} 1-0


[Site "https://www.chess.com"]

[Event "Titled Tuesday Blitz April 25 Early 2023"]
[White "Kielinkei"]
[Black "Prado, Alexandra"]
[BlackFideId "3301346"]
[WhiteElo "2429"]
[BlackElo "1759"]
[Result "1-0"]
[Round "04"]
[TimeControl "180+2"]
[Date "2023.04.25"]
[WhiteClock "0:00:34"]
[BlackClock "0:00:01"]

1. d4 {[%clk 0:03:00]}  Nf6 {[%clk 0:02:59]} 2. c4 {[%clk 0:03:00]}  g6 {[%clk 0:02:59]} 3. Nc3 {[%clk 0:02:59]}  Bg7 {[%clk 0:02:59]} 4. e4 {[%clk 0:03:00]}  d6 {[%clk 0:02:59]} 5. Be2 {[%clk 0:02:58]}  O-O {[%clk 0:02:59]} 6. Be3 {[%clk 0:02:53]}  Nc6 {[%clk 0:02:53]} 7. d5 {[%clk 0:02:47]}  Ne5 {[%clk 0:02:28]} 8. h3 {[%clk 0:02:35]}  c5 {[%clk 0:02:05]} 9. f4 {[%clk 0:02:28]}  Ned7 {[%clk 0:02:01]} 10. Nf3 {[%clk 0:02:28]}  a6 {[%clk 0:01:56]} 11. O-O {[%clk 0:02:20]}  Rb8 {[%clk 0:01:55]} 12. a4 {[%clk 0:02:08]}  b6 {[%clk 0:01:50]} 13. Qd2 {[%clk 0:01:52]}  Qc7 {[%clk 0:00:56]} 14. Rae1 {[%clk 0:01:51]}  Re8 {[%clk 0:00:56]} 15. Bd3 {[%clk 0:01:43]}  Nf8 {[%clk 0:00:47]} 16. Bf2 {[%clk 0:01:42]}  e6 {[%clk 0:00:44]} 17. Bh4 {[%clk 0:01:30]}  exd5 {[%clk 0:00:42]} 18. exd5 {[%clk 0:01:31]}  Bd7 {[%clk 0:00:34]} 19. b3 {[%clk 0:01:22]}  Nh5 {[%clk 0:00:18]} 20. Ne4 {[%clk 0:01:11]}  Bf5 {[%clk 0:00:13]} 21. g4 {[%clk 0:01:01]}  Bxe4 {[%clk 0:00:13]} 22. Bxe4 {[%clk 0:01:02]}  Nf6 {[%clk 0:00:12]} 23. Bc2 {[%clk 0:01:02]}  Qd7 {[%clk 0:00:08]} 24. Bd3 {[%clk 0:00:58]}  h5 {[%clk 0:00:07]} 25. g5 {[%clk 0:00:47]}  N6h7 {[%clk 0:00:06]} 26. Kg2 {[%clk 0:00:46]}  Qc7 {[%clk 0:00:04]} 27. Qc2 {[%clk 0:00:41]}  Qd7 {[%clk 0:00:04]} 28. f5 {[%clk 0:00:40]}  Rxe1 {[%clk 0:00:03]} 29. Rxe1 {[%clk 0:00:40]}  Re8 {[%clk 0:00:02]} 30. f6 {[%clk 0:00:36]}  Bh8 {[%clk 0:00:02]} 31. Qd2 {[%clk 0:00:33]}  Rxe1 {[%clk 0:00:01]} 32. Qxe1 {[%clk 0:00:34]} 1-0


[Site "https://www.chess.com"]

[Event "Titled Tuesday Blitz April 25 Early 2023"]
[White "Belov, Alexei"]
[Black "Sohier, Julien"]
[WhiteFideId "4128206"]
[BlackFideId "645346"]
[WhiteElo "2496"]
[BlackElo "2209"]
[Result "1-0"]
[Round "04"]
[TimeControl "180+2"]
[Date "2023.04.25"]
[WhiteClock "0:00:09"]
[BlackClock "0:00:10"]

1. e4 {[%clk 0:03:00]}  e5 {[%clk 0:02:59]} 2. Nf3 {[%clk 0:03:00]}  Nc6 {[%clk 0:03:00]} 3. Bb5 {[%clk 0:03:01]}  a6 {[%clk 0:03:00]} 4. Ba4 {[%clk 0:03:00]}  Nf6 {[%clk 0:02:59]} 5. d4 {[%clk 0:03:01]}  Nxe4 {[%clk 0:02:57]} 6. dxe5 {[%clk 0:02:58]}  Nc5 {[%clk 0:02:55]} 7. Bxc6 {[%clk 0:02:53]}  dxc6 {[%clk 0:02:54]} 8. Qe2 {[%clk 0:02:46]}  Be7 {[%clk 0:02:50]} 9. O-O {[%clk 0:02:42]}  Bg4 {[%clk 0:02:44]} 10. Qe3 {[%clk 0:02:17]}  Qd7 {[%clk 0:02:23]} 11. Nc3 {[%clk 0:02:11]}  O-O {[%clk 0:02:20]} 12. Nd4 {[%clk 0:02:07]}  Ne6 {[%clk 0:02:14]} 13. Nxe6 {[%clk 0:01:57]}  Bxe6 {[%clk 0:02:13]} 14. Rd1 {[%clk 0:01:55]}  Qe8 {[%clk 0:02:13]} 15. Qg3 {[%clk 0:01:53]}  Kh8 {[%clk 0:02:12]} 16. Be3 {[%clk 0:01:48]}  Rd8 {[%clk 0:02:11]} 17. Bg5 {[%clk 0:01:44]}  Rxd1+ {[%clk 0:02:11]} 18. Rxd1 {[%clk 0:01:43]}  Bf5 {[%clk 0:02:07]} 19. Rd2 {[%clk 0:01:36]}  Bb4 {[%clk 0:01:53]} 20. Rd8 {[%clk 0:01:30]}  Qe6 {[%clk 0:01:43]} 21. Rxf8+ {[%clk 0:01:27]}  Bxf8 {[%clk 0:01:44]} 22. Qe3 {[%clk 0:01:19]}  h6 {[%clk 0:01:38]} 23. Bf4 {[%clk 0:01:17]}  Bxc2 {[%clk 0:01:27]} 24. Qd2 {[%clk 0:01:16]}  Bf5 {[%clk 0:01:26]} 25. Qd8 {[%clk 0:01:13]}  Qe7 {[%clk 0:01:26]} 26. Qa8 {[%clk 0:01:08]}  b5 {[%clk 0:01:11]} 27. Qxc6 {[%clk 0:01:03]}  Qb4 {[%clk 0:01:04]} 28. Qe8 {[%clk 0:00:39]}  Kg8 {[%clk 0:01:00]} 29. Bc1 {[%clk 0:00:29]}  Qd4 {[%clk 0:00:58]} 30. h3 {[%clk 0:00:25]}  b4 {[%clk 0:00:57]} 31. Be3 {[%clk 0:00:23]}  Qd3 {[%clk 0:00:50]} 32. Na4 {[%clk 0:00:18]}  Qd7 {[%clk 0:00:39]} 33. Qb8 {[%clk 0:00:17]}  Qc8 {[%clk 0:00:25]} 34. Qxc8 {[%clk 0:00:15]}  Bxc8 {[%clk 0:00:24]} 35. Bc5 {[%clk 0:00:15]}  Be6 {[%clk 0:00:20]} 36. Bxf8 {[%clk 0:00:15]}  Kxf8 {[%clk 0:00:21]} 37. Nc5 {[%clk 0:00:13]}  Bxa2 {[%clk 0:00:20]} 38. Nxa6 {[%clk 0:00:13]}  b3 {[%clk 0:00:18]} 39. Nxc7 {[%clk 0:00:13]}  Ke7 {[%clk 0:00:18]} 40. Nb5 {[%clk 0:00:12]}  Ke6 {[%clk 0:00:18]} 41. f4 {[%clk 0:00:12]}  Kf5 {[%clk 0:00:18]} 42. g3 {[%clk 0:00:10]}  h5 {[%clk 0:00:16]} 43. Nd6+ {[%clk 0:00:09]}  Ke6 {[%clk 0:00:16]} 44. Kf2 {[%clk 0:00:09]}  f6 {[%clk 0:00:15]} 45. Nc4 {[%clk 0:00:08]}  fxe5 {[%clk 0:00:15]} 46. Nxe5 {[%clk 0:00:07]}  g5 {[%clk 0:00:15]} 47. Ke3 {[%clk 0:00:07]}  gxf4+ {[%clk 0:00:15]} 48. gxf4 {[%clk 0:00:07]}  Kf5 {[%clk 0:00:15]} 49. Nf3 {[%clk 0:00:07]}  Bb1 {[%clk 0:00:14]} 50. Nd4+ {[%clk 0:00:07]}  Kf6 {[%clk 0:00:10]} 51. Nxb3 {[%clk 0:00:08]}  h4 {[%clk 0:00:10]} 52. Nd4 {[%clk 0:00:09]} 1-0


[Site "https://www.chess.com"]